[Event "Late-Titled-Tuesday-Blitz-December-26-2023"]
[Site "Chess.com"]
[Date "2023.12.26"]
[Round "7"]
[White "maurovargas01"]
[Black "BestestBP"]
[Result "0-1"]
[WhiteElo "1834"]
[BlackElo "2189"]
[TimeControl "180+1"]
[EndTime "15:17:27 PST"]
[Termination "BestestBP won on time"]

1. e4 {[%clk 0:02:59.8]} 1... e5 {[%clk 0:02:59.8]} 2. Nf3 {[%clk 0:02:59.4]}
2... Nc6 {[%clk 0:03:00.4]} 3. d4 {[%clk 0:02:58.8]} 3... exd4 {[%clk
0:03:00.4]} 4. Bc4 {[%clk 0:02:59.1]} 4... Nf6 {[%clk 0:03:00.6]} 5. e5 {[%clk
0:02:58.8]} 5... d5 {[%clk 0:03:01]} 6. Bb5 {[%clk 0:02:58.5]} 6... Ne4 {[%clk
0:03:01.5]} 7. O-O {[%clk 0:02:58.4]} 7... Bc5 {[%clk 0:02:57.4]} 8. Nxd4 {[%clk
0:02:51.8]} 8... O-O {[%clk 0:02:52.8]} 9. Nxc6 {[%clk 0:02:49]} 9... bxc6
{[%clk 0:02:52.2]} 10. Bxc6 {[%clk 0:02:49]} 10... Ba6 {[%clk 0:02:50.2]} 11.
Be3 {[%clk 0:02:36.2]} 11... Bxe3 {[%clk 0:02:43]} 12. fxe3 {[%clk 0:02:30.1]}
12... Bxf1 {[%clk 0:02:42.8]} 13. Bxa8 {[%clk 0:02:20.7]} 13... Qg5 {[%clk
0:02:41.5]} 14. Qxf1 {[%clk 0:02:07.2]} 14... Qxe3+ {[%clk 0:02:41.2]} 15. Kh1
{[%clk 0:02:06.5]} 15... Nf2+ {[%clk 0:02:33.2]} 16. Kg1 {[%clk 0:02:04.1]}
16... Ng4+ {[%clk 0:02:33.1]} 17. Kh1 {[%clk 0:02:02.7]} 17... Qxe5 {[%clk
0:02:32.9]} 18. Qg1 {[%clk 0:01:47.1]} 18... Rxa8 {[%clk 0:02:24.1]} 19. Nc3
{[%clk 0:01:46.4]} 19... Re8 {[%clk 0:02:18.7]} 20. h3 {[%clk 0:01:30.6]} 20...
Nf6 {[%clk 0:02:14.9]} 21. Rd1 {[%clk 0:01:28.3]} 21... c6 {[%clk 0:01:59.3]}
22. Qxa7 {[%clk 0:01:27]} 22... Nh5 {[%clk 0:01:58]} 23. Qd4 {[%clk 0:01:19.1]}
23... Ng3+ {[%clk 0:01:52.9]} 24. Kg1 {[%clk 0:01:18.7]} 24... Qh5 {[%clk
0:01:37.3]} 25. a4 {[%clk 0:01:03.8]} 25... h6 {[%clk 0:01:29.9]} 26. a5 {[%clk
0:01:00.5]} 26... Qg5 {[%clk 0:00:53.2]} 27. a6 {[%clk 0:00:52]} 27... Nf5
{[%clk 0:00:45.3]} 28. Qd2 {[%clk 0:00:43.6]} 28... Qe7 {[%clk 0:00:31.9]} 29.
Ra1 {[%clk 0:00:33]} 29... Qc5+ {[%clk 0:00:24.8]} 30. Kh2 {[%clk 0:00:24.2]}
30... Qd6+ {[%clk 0:00:24.4]} 31. Kh1 {[%clk 0:00:20.4]} 31... Ng3+ {[%clk
0:00:24.1]} 32. Kg1 {[%clk 0:00:19.5]} 32... Qc5+ {[%clk 0:00:14.1]} 33. Kh2
{[%clk 0:00:18.8]} 33... Qd6 {[%clk 0:00:14.6]} 34. Kg1 {[%clk 0:00:17]} 34...
Ra8 {[%clk 0:00:12.7]} 35. a7 {[%clk 0:00:10.8]} 35... Qc5+ {[%clk 0:00:10.1]}
36. Kh2 {[%clk 0:00:10.9]} 36... Nf5 {[%clk 0:00:10.7]} 37. Qd3 {[%clk
0:00:04.9]} 37... g6 {[%clk 0:00:09.5]} 0-1

[Event "Late-Titled-Tuesday-Blitz-December-26-2023"]
[Site "Chess.com"]
[Date "2023.12.26"]
[Round "7"]
[White "TanitoluwaAps116"]
[Black "nindjaxx8"]
[Result "1-0"]
[WhiteElo "2761"]
[BlackElo "2583"]
[TimeControl "180+1"]
[EndTime "15:17:31 PST"]
[Termination "TanitoluwaAps116 won by checkmate"]

1. e4 {[%clk 0:02:58.1]} 1... e6 {[%clk 0:02:53.1]} 2. d4 {[%clk 0:02:57.6]}
2... d5 {[%clk 0:02:54]} 3. Bd3 {[%clk 0:02:57.6]} 3... dxe4 {[%clk 0:02:40.8]}
4. Bxe4 {[%clk 0:02:57.7]} 4... Nf6 {[%clk 0:02:41.7]} 5. Bf3 {[%clk 0:02:56.3]}
5... Be7 {[%clk 0:02:42]} 6. Ne2 {[%clk 0:02:56.2]} 6... O-O {[%clk 0:02:41.4]}
7. O-O {[%clk 0:02:55.7]} 7... c6 {[%clk 0:02:42]} 8. c4 {[%clk 0:02:51.3]} 8...
b6 {[%clk 0:02:42]} 9. Nbc3 {[%clk 0:02:51]} 9... Bb7 {[%clk 0:02:41.6]} 10. Bg5
{[%clk 0:02:51.2]} 10... Qc8 {[%clk 0:02:41.6]} 11. Re1 {[%clk 0:02:47.9]} 11...
Rd8 {[%clk 0:02:41.2]} 12. Qc2 {[%clk 0:02:47.3]} 12... h6 {[%clk 0:02:40.9]}
13. Bh4 {[%clk 0:02:46.5]} 13... Na6 {[%clk 0:02:40.4]} 14. Rad1 {[%clk
0:02:41.4]} 14... c5 {[%clk 0:02:38.2]} 15. Bxb7 {[%clk 0:02:23.2]} 15... Qxb7
{[%clk 0:02:35.2]} 16. d5 {[%clk 0:02:22.1]} 16... exd5 {[%clk 0:02:28.4]} 17.
cxd5 {[%clk 0:02:04.8]} 17... Nxd5 {[%clk 0:02:24.3]} 18. Rxd5 {[%clk
0:01:52.1]} 18... Bxh4 {[%clk 0:02:10.4]} 19. Qe4 {[%clk 0:01:50.9]} 19... Qe7
{[%clk 0:01:51.6]} 20. Re5 {[%clk 0:01:21]} 20... Qf6 {[%clk 0:01:49.7]} 21. g3
{[%clk 0:01:11.9]} 21... Nb4 {[%clk 0:01:39.9]} 22. Rd1 {[%clk 0:00:35.2]} 22...
Rxd1+ {[%clk 0:01:22.6]} 23. Nxd1 {[%clk 0:00:36.1]} 23... Rd8 {[%clk
0:01:20.8]} 24. Re8+ {[%clk 0:00:34.1]} 24... Rxe8 {[%clk 0:01:17.4]} 25. Qxe8+
{[%clk 0:00:35]} 25... Kh7 {[%clk 0:01:17]} 26. Qe4+ {[%clk 0:00:35.9]} 26... g6
{[%clk 0:01:12.3]} 27. a3 {[%clk 0:00:31]} 27... Qd6 {[%clk 0:00:50.6]} 28. Ne3
{[%clk 0:00:20.7]} 28... Nd3 {[%clk 0:00:38.2]} 29. gxh4 {[%clk 0:00:20]} 29...
Nxb2 {[%clk 0:00:36.9]} 30. h5 {[%clk 0:00:18]} 30... b5 {[%clk 0:00:28.8]} 31.
Nf4 {[%clk 0:00:15.7]} 31... c4 {[%clk 0:00:25.8]} 32. hxg6+ {[%clk 0:00:14.6]}
32... fxg6 {[%clk 0:00:25]} 33. Qb7+ {[%clk 0:00:14.6]} 33... Kg8 {[%clk
0:00:24.4]} 34. Ned5 {[%clk 0:00:14]} 34... c3 {[%clk 0:00:21.4]} 35. Ne7+
{[%clk 0:00:10.6]} 35... Kf7 {[%clk 0:00:18.1]} 36. Nf5+ {[%clk 0:00:09.8]}
36... Kf6 {[%clk 0:00:16.7]} 37. Nxd6 {[%clk 0:00:10.3]} 37... c2 {[%clk
0:00:17.4]} 38. Qc6 {[%clk 0:00:06.7]} 38... Nc4 {[%clk 0:00:17]} 39. Nxc4+
{[%clk 0:00:04.3]} 39... Kf5 {[%clk 0:00:02.7]} 40. Ne3+ {[%clk 0:00:05.2]}
40... Kxf4 {[%clk 0:00:03.6]} 41. Qxc2 {[%clk 0:00:05.4]} 41... Kg5 {[%clk
0:00:03.8]} 42. h4+ {[%clk 0:00:04.4]} 42... Kxh4 {[%clk 0:00:03.7]} 43. Qxg6
{[%clk 0:00:04]} 43... h5 {[%clk 0:00:04]} 44. Qg3# {[%clk 0:00:04.1]} 1-0

[Event "Late-Titled-Tuesday-Blitz-December-26-2023"]
[Site "Chess.com"]
[Date "2023.12.26"]
[Round "7"]
[White "MITerryble"]
[Black "Alexander_Khlebovich"]
[Result "1-0"]
[WhiteElo "3028"]
[BlackElo "2766"]
[TimeControl "180+1"]
[EndTime "15:17:40 PST"]
[Termination "MITerryble won on time"]

1. Nf3 {[%clk 0:03:00.9]} 1... c5 {[%clk 0:02:59.4]} 2. g3 {[%clk 0:02:59.8]}
2... Nc6 {[%clk 0:02:59.4]} 3. Bg2 {[%clk 0:03:00.4]} 3... g6 {[%clk 0:03:00]}
4. O-O {[%clk 0:03:00.7]} 4... Bg7 {[%clk 0:03:00.6]} 5. c4 {[%clk 0:03:00.4]}
5... Nf6 {[%clk 0:03:00.8]} 6. Nc3 {[%clk 0:02:59.3]} 6... O-O {[%clk 0:03:01]}
7. d4 {[%clk 0:02:53.8]} 7... cxd4 {[%clk 0:03:01.9]} 8. Nxd4 {[%clk 0:02:54.7]}
8... Ng4 {[%clk 0:03:01.8]} 9. Nc2 {[%clk 0:02:49]} 9... Bxc3 {[%clk 0:03:00.5]}
10. bxc3 {[%clk 0:02:49.1]} 10... d6 {[%clk 0:03:00.8]} 11. h3 {[%clk
0:02:33.2]} 11... Nge5 {[%clk 0:02:58.8]} 12. Bh6 {[%clk 0:02:33.4]} 12... Re8
{[%clk 0:02:55.4]} 13. Nd4 {[%clk 0:02:30.2]} 13... Bd7 {[%clk 0:02:45.5]} 14.
Rb1 {[%clk 0:02:27.5]} 14... Na5 {[%clk 0:02:29.9]} 15. f4 {[%clk 0:02:23.4]}
15... Nexc4 {[%clk 0:02:28]} 16. f5 {[%clk 0:02:24]} 16... Ne5 {[%clk
0:02:14.4]} 17. fxg6 {[%clk 0:02:09.4]} 17... hxg6 {[%clk 0:02:10.6]} 18. Qd2
{[%clk 0:02:07.1]} 18... Rc8 {[%clk 0:02:00.3]} 19. g4 {[%clk 0:02:01.3]} 19...
b6 {[%clk 0:01:50.1]} 20. Rbc1 {[%clk 0:01:59.9]} 20... Bc6 {[%clk 0:01:29.8]}
21. e4 {[%clk 0:01:45.7]} 21... Bd7 {[%clk 0:01:15]} 22. Qf4 {[%clk 0:01:39]}
22... Nac6 {[%clk 0:01:06.8]} 23. Rcd1 {[%clk 0:01:33.7]} 23... b5 {[%clk
0:01:00.5]} 24. Nf5 {[%clk 0:01:12.2]} 24... Bxf5 {[%clk 0:00:42.5]} 25. exf5
{[%clk 0:01:12.2]} 25... e6 {[%clk 0:00:38.6]} 26. f6 {[%clk 0:00:55.2]} 26...
Qb6+ {[%clk 0:00:10.5]} 27. Kh1 {[%clk 0:00:55.4]} 27... Qc5 {[%clk 0:00:10.7]}
28. Bg7 {[%clk 0:00:50.9]} 28... g5 {[%clk 0:00:06.5]} 29. Qxg5 {[%clk 0:00:51]}
29... Ng6 {[%clk 0:00:06.8]} 30. Qh6 {[%clk 0:00:48.2]} 30... Nce5 {[%clk
0:00:06.5]} 31. Rde1 {[%clk 0:00:25.4]} 31... Qxc3 {[%clk 0:00:06.1]} 32. Re2
{[%clk 0:00:19.8]} 32... Qg3 {[%clk 0:00:04.2]} 33. Rd2 {[%clk 0:00:06.2]} 33...
Rc3 {[%clk 0:00:03.5]} 34. Rxd6 {[%clk 0:00:06]} 34... Rc2 {[%clk 0:00:03.3]}
35. Rd2 {[%clk 0:00:06.5]} 35... Rxd2 {[%clk 0:00:03.1]} 36. Qxd2 {[%clk
0:00:07.4]} 36... Nh4 {[%clk 0:00:03.1]} 37. Qf2 {[%clk 0:00:02.8]} 37... Qxg2+
{[%clk 0:00:01.7]} 38. Qxg2 {[%clk 0:00:03]} 38... Nxg2 {[%clk 0:00:01.6]} 39.
Kxg2 {[%clk 0:00:03.9]} 39... b4 {[%clk 0:00:01.8]} 40. Rc1 {[%clk 0:00:03]}
40... a5 {[%clk 0:00:01.2]} 41. Rc5 {[%clk 0:00:03.2]} 1-0

[Event "Late-Titled-Tuesday-Blitz-December-26-2023"]
[Site "Chess.com"]
[Date "2023.12.26"]
[Round "7"]
[White "koncheto"]
[Black "djano"]
[Result "0-1"]
[WhiteElo "2529"]
[BlackElo "2653"]
[TimeControl "180+1"]
[EndTime "15:17:43 PST"]
[Termination "djano won on time"]

1. e4 {[%clk 0:02:47]} 1... c5 {[%clk 0:02:59.8]} 2. Nf3 {[%clk 0:02:46.9]} 2...
Nc6 {[%clk 0:03:00]} 3. d4 {[%clk 0:02:47.3]} 3... cxd4 {[%clk 0:02:58.5]} 4.
Nxd4 {[%clk 0:02:48.2]} 4... e5 {[%clk 0:02:59]} 5. Nb5 {[%clk 0:02:48.4]} 5...
d6 {[%clk 0:02:59.3]} 6. c4 {[%clk 0:02:48.1]} 6... g6 {[%clk 0:02:58.4]} 7.
N1c3 {[%clk 0:02:48.2]} 7... a6 {[%clk 0:02:58.5]} 8. Na3 {[%clk 0:02:48.7]}
8... Be6 {[%clk 0:02:57.7]} 9. Be3 {[%clk 0:02:49.1]} 9... Nf6 {[%clk
0:02:57.5]} 10. Be2 {[%clk 0:02:49.5]} 10... Bg7 {[%clk 0:02:57.9]} 11. Qd2
{[%clk 0:02:50]} 11... O-O {[%clk 0:02:56.1]} 12. O-O {[%clk 0:02:50.2]} 12...
Nd4 {[%clk 0:02:55.6]} 13. Nc2 {[%clk 0:02:49]} 13... Nxe2+ {[%clk 0:02:48.3]}
14. Qxe2 {[%clk 0:02:49.3]} 14... Rc8 {[%clk 0:02:48.1]} 15. Na3 {[%clk
0:02:44.4]} 15... Nh5 {[%clk 0:02:43.1]} 16. Rfd1 {[%clk 0:02:29.9]} 16... f5
{[%clk 0:02:42.8]} 17. exf5 {[%clk 0:02:24.5]} 17... Rxf5 {[%clk 0:02:41]} 18.
Ne4 {[%clk 0:02:19.2]} 18... Rc6 {[%clk 0:02:27.2]} 19. Rd2 {[%clk 0:02:01.1]}
19... Nf4 {[%clk 0:02:23.6]} 20. Bxf4 {[%clk 0:02:00.4]} 20... exf4 {[%clk
0:02:24.1]} 21. Rad1 {[%clk 0:02:00.2]} 21... f3 {[%clk 0:02:24.1]} 22. Qe3
{[%clk 0:01:51.8]} 22... Qh4 {[%clk 0:02:16.6]} 23. Ng3 {[%clk 0:01:13.9]} 23...
Be5 {[%clk 0:02:09.7]} 24. Rxd6 {[%clk 0:00:44.2]} 24... fxg2 {[%clk 0:01:21.7]}
25. Rd8+ {[%clk 0:00:22]} 25... Kf7 {[%clk 0:01:10.8]} 26. Nc2 {[%clk
0:00:03.1]} 26... Rh5 {[%clk 0:00:58]} 27. Qf3+ {[%clk 0:00:03.1]} 27... Rf5
{[%clk 0:00:57.3]} 28. Qxg2 {[%clk 0:00:03.7]} 28... Rf4 {[%clk 0:00:45.5]} 29.
Ne3 {[%clk 0:00:03.5]} 29... Rc7 {[%clk 0:00:31.7]} 30. b3 {[%clk 0:00:03.8]}
30... h5 {[%clk 0:00:31.2]} 31. R8d2 {[%clk 0:00:04.4]} 31... Qf6 {[%clk
0:00:19.6]} 32. Nd5 {[%clk 0:00:04.7]} 32... Bxd5 {[%clk 0:00:19.4]} 33. Rxd5
{[%clk 0:00:05]} 33... Re7 {[%clk 0:00:18.2]} 34. R5d2 {[%clk 0:00:05.6]} 34...
Bc3 {[%clk 0:00:17.4]} 35. Re2 {[%clk 0:00:05.8]} 35... Rxe2 {[%clk 0:00:14.6]}
36. Nxe2 {[%clk 0:00:06.7]} 36... Rg4 {[%clk 0:00:15.3]} 37. Ng3 {[%clk
0:00:07]} 37... h4 {[%clk 0:00:16]} 38. Qxb7+ {[%clk 0:00:07.2]} 38... Kg8
{[%clk 0:00:15.2]} 39. Qc8+ {[%clk 0:00:06.5]} 39... Kg7 {[%clk 0:00:13.5]} 40.
Qxg4 {[%clk 0:00:07.4]} 40... hxg3 {[%clk 0:00:13.5]} 41. Rd7+ {[%clk 0:00:08]}
41... Kh6 {[%clk 0:00:12.9]} 42. Qh3+ {[%clk 0:00:07.1]} 42... Kg5 {[%clk
0:00:13.5]} 43. Qxg3+ {[%clk 0:00:06.8]} 43... Kh6 {[%clk 0:00:14.2]} 44. Rd3
{[%clk 0:00:04]} 44... Be5 {[%clk 0:00:12.8]} 45. Qh3+ {[%clk 0:00:03.8]} 45...
Kg5 {[%clk 0:00:13.4]} 46. Rf3 {[%clk 0:00:04.7]} 46... Bf4 {[%clk 0:00:12.1]}
47. Qg2+ {[%clk 0:00:03.7]} 47... Kf5 {[%clk 0:00:12.7]} 48. h3 {[%clk
0:00:02.9]} 48... g5 {[%clk 0:00:12.9]} 49. Qg4+ {[%clk 0:00:02.7]} 49... Ke4
{[%clk 0:00:13.5]} 50. Qg2 {[%clk 0:00:01.6]} 50... Kd4 {[%clk 0:00:13.2]} 0-1

[Event "Late-Titled-Tuesday-Blitz-December-26-2023"]
[Site "Chess.com"]
[Date "2023.12.26"]
[Round "7"]
[White "IlanSchnaider"]
[Black "monalize"]
[Result "1-0"]
[WhiteElo "2675"]
[BlackElo "2470"]
[TimeControl "180+1"]
[EndTime "15:17:46 PST"]
[Termination "IlanSchnaider won by resignation"]

1. e4 {[%clk 0:03:00.9]} 1... c5 {[%clk 0:02:59.1]} 2. Nf3 {[%clk 0:03:00.8]}
2... d6 {[%clk 0:02:58.8]} 3. Bb5+ {[%clk 0:03:01.1]} 3... Nd7 {[%clk
0:02:57.8]} 4. a4 {[%clk 0:03:01.2]} 4... a6 {[%clk 0:02:57.4]} 5. Bc4 {[%clk
0:03:01.4]} 5... e6 {[%clk 0:02:57.4]} 6. Nc3 {[%clk 0:03:01.4]} 6... Ngf6
{[%clk 0:02:56.6]} 7. O-O {[%clk 0:03:01.3]} 7... b6 {[%clk 0:02:56.3]} 8. d4
{[%clk 0:03:01.4]} 8... cxd4 {[%clk 0:02:55.5]} 9. Nxd4 {[%clk 0:03:02.1]} 9...
Bb7 {[%clk 0:02:55.1]} 10. Re1 {[%clk 0:03:02.8]} 10... Rc8 {[%clk 0:02:52.9]}
11. Bb3 {[%clk 0:03:02.2]} 11... Nc5 {[%clk 0:02:50.9]} 12. Bg5 {[%clk
0:03:00.4]} 12... h6 {[%clk 0:02:46.8]} 13. Bh4 {[%clk 0:02:59.7]} 13... Be7
{[%clk 0:02:34.8]} 14. Qe2 {[%clk 0:02:50.3]} 14... O-O {[%clk 0:02:25.5]} 15.
f3 {[%clk 0:02:47.9]} 15... Nxb3 {[%clk 0:02:16.5]} 16. Nxb3 {[%clk 0:02:45.6]}
16... Nxe4 {[%clk 0:02:12.8]} 17. Bxe7 {[%clk 0:01:54.4]} 17... Nxc3 {[%clk
0:02:11.6]} 18. Qxe6 {[%clk 0:01:48.6]} 18... fxe6 {[%clk 0:02:09.9]} 19. Bxd8
{[%clk 0:01:48.9]} 19... Rfxd8 {[%clk 0:02:08.3]} 20. bxc3 {[%clk 0:01:49.1]}
20... e5 {[%clk 0:02:08.5]} 21. Re3 {[%clk 0:01:48]} 21... a5 {[%clk 0:02:04.8]}
22. Nd2 {[%clk 0:01:45.6]} 22... Kf7 {[%clk 0:01:56.6]} 23. Rd3 {[%clk
0:01:41.4]} 23... Ba6 {[%clk 0:01:54.2]} 24. Re3 {[%clk 0:01:41.9]} 24... Rc6
{[%clk 0:01:50.1]} 25. Rb1 {[%clk 0:01:40.5]} 25... Rdc8 {[%clk 0:01:47.2]} 26.
Rb3 {[%clk 0:01:38.2]} 26... R8c7 {[%clk 0:01:41.6]} 27. Kf2 {[%clk 0:01:35.8]}
27... Bc8 {[%clk 0:01:40.8]} 28. g3 {[%clk 0:01:25.5]} 28... Be6 {[%clk
0:01:33.4]} 29. Ra3 {[%clk 0:01:26.1]} 29... g5 {[%clk 0:01:31.9]} 30. h4 {[%clk
0:01:20.2]} 30... Ke7 {[%clk 0:01:31.2]} 31. hxg5 {[%clk 0:01:19.6]} 31... hxg5
{[%clk 0:01:30.8]} 32. Ne4 {[%clk 0:01:19.4]} 32... g4 {[%clk 0:01:30]} 33. f4
{[%clk 0:01:19]} 33... exf4 {[%clk 0:01:29.3]} 34. gxf4 {[%clk 0:01:19.9]} 34...
Kd7 {[%clk 0:01:27.7]} 35. Nf6+ {[%clk 0:01:19.4]} 35... Ke7 {[%clk 0:01:27.2]}
36. Nd5+ {[%clk 0:01:19.3]} 36... Kf7 {[%clk 0:01:26.7]} 37. Nxc7 {[%clk
0:01:18.9]} 37... Rxc7 {[%clk 0:01:26.9]} 38. Kg3 {[%clk 0:01:19.1]} 38... Rc5
{[%clk 0:01:24.7]} 39. Ra1 {[%clk 0:01:16.6]} 39... Bd7 {[%clk 0:01:23.7]} 40.
Rb1 {[%clk 0:01:14.8]} 40... Rc6 {[%clk 0:01:22.6]} 41. Rb5 {[%clk 0:01:11]}
41... Kf6 {[%clk 0:01:18.3]} 42. Rd3 {[%clk 0:01:07.9]} 42... Bf5 {[%clk
0:01:15.9]} 43. Re3 {[%clk 0:01:01.5]} 43... Bxc2 {[%clk 0:01:14.6]} 44. Kxg4
{[%clk 0:00:58.4]} 44... Bxa4 {[%clk 0:01:13.8]} 45. Rf5+ {[%clk 0:00:58.6]}
45... Kg7 {[%clk 0:01:10.3]} 46. Re7+ {[%clk 0:00:56.3]} 46... Kg6 {[%clk
0:01:09]} 47. Re6+ {[%clk 0:00:53.3]} 47... Kg7 {[%clk 0:01:08.7]} 48. Kg5
{[%clk 0:00:46.9]} 48... Bc2 {[%clk 0:01:04.9]} 49. Re7+ {[%clk 0:00:32.9]}
49... Kg8 {[%clk 0:01:04.4]} 50. Rff7 {[%clk 0:00:26.3]} 50... a4 {[%clk
0:01:01]} 51. Kf6 {[%clk 0:00:24.7]} 51... d5+ {[%clk 0:01:00.8]} 52. Ke5 {[%clk
0:00:22.3]} 52... Rxc3 {[%clk 0:00:58.6]} 53. Rg7+ {[%clk 0:00:20.7]} 53... Kh8
{[%clk 0:00:57.4]} 54. Kf6 {[%clk 0:00:16]} 54... Rc6+ {[%clk 0:00:55.9]} 55.
Kf7 {[%clk 0:00:12.8]} 55... Rc8 {[%clk 0:00:47.1]} 56. Rg2 {[%clk 0:00:13]}
56... Bh7 {[%clk 0:00:42.4]} 57. Rh2 {[%clk 0:00:13.3]} 57... a3 {[%clk
0:00:35.5]} 58. Kf6 {[%clk 0:00:13.6]} 58... Rf8+ {[%clk 0:00:35]} 59. Ke6
{[%clk 0:00:09.4]} 1-0

[Event "Late-Titled-Tuesday-Blitz-December-26-2023"]
[Site "Chess.com"]
[Date "2023.12.26"]
[Round "7"]
[White "Nf3c5"]
[Black "GMKrikor"]
[Result "0-1"]
[WhiteElo "2516"]
[BlackElo "2816"]
[TimeControl "180+1"]
[EndTime "15:17:51 PST"]
[Termination "GMKrikor won by resignation"]

1. d4 {[%clk 0:03:00.9]} 1... Nf6 {[%clk 0:02:59.7]} 2. Nf3 {[%clk 0:03:00.6]}
2... g6 {[%clk 0:03:00.1]} 3. Nc3 {[%clk 0:02:59.3]} 3... Bg7 {[%clk 0:02:51.6]}
4. e4 {[%clk 0:02:58.6]} 4... d6 {[%clk 0:02:52.4]} 5. h3 {[%clk 0:02:58.3]}
5... a6 {[%clk 0:02:52.3]} 6. a4 {[%clk 0:02:57.2]} 6... Nc6 {[%clk 0:02:52.1]}
7. d5 {[%clk 0:02:47.8]} 7... Nb4 {[%clk 0:02:52]} 8. a5 {[%clk 0:02:45.7]} 8...
c6 {[%clk 0:02:39.4]} 9. Bc4 {[%clk 0:02:27.6]} 9... O-O {[%clk 0:02:26.5]} 10.
O-O {[%clk 0:02:25.8]} 10... e6 {[%clk 0:02:24]} 11. dxe6 {[%clk 0:02:16.1]}
11... Bxe6 {[%clk 0:02:13.5]} 12. Bxe6 {[%clk 0:01:59.1]} 12... fxe6 {[%clk
0:02:14.4]} 13. e5 {[%clk 0:01:59.7]} 13... Nfd5 {[%clk 0:02:14.2]} 14. Ne4
{[%clk 0:01:54]} 14... Rxf3 {[%clk 0:02:00.4]} 15. Qxf3 {[%clk 0:01:26.4]} 15...
Nxc2 {[%clk 0:01:59.5]} 16. Bg5 {[%clk 0:01:21.5]} 16... Qd7 {[%clk 0:01:41.6]}
17. exd6 {[%clk 0:01:01.1]} 17... Nxa1 {[%clk 0:01:39.6]} 18. Rxa1 {[%clk
0:01:00.4]} 18... Rf8 {[%clk 0:01:30]} 19. Qg3 {[%clk 0:00:59.4]} 19... Bd4
{[%clk 0:01:02.1]} 20. Rd1 {[%clk 0:00:51.8]} 20... e5 {[%clk 0:01:01]} 21. Rxd4
{[%clk 0:00:36.9]} 21... exd4 {[%clk 0:01:01.1]} 22. Qe5 {[%clk 0:00:37.5]}
22... d3 {[%clk 0:00:36.6]} 23. Be7 {[%clk 0:00:32.5]} 23... Rf7 {[%clk
0:00:33.4]} 24. Nc5 {[%clk 0:00:23.8]} 24... Rxe7 {[%clk 0:00:24.1]} 25. dxe7
{[%clk 0:00:18.4]} 25... Qxe7 {[%clk 0:00:24.4]} 26. Qb8+ {[%clk 0:00:18.5]}
26... Kg7 {[%clk 0:00:22.2]} 27. Nxd3 {[%clk 0:00:19.1]} 27... Nf6 {[%clk
0:00:13.7]} 28. Qf4 {[%clk 0:00:18.3]} 28... h6 {[%clk 0:00:09.3]} 29. Qd4
{[%clk 0:00:18.3]} 29... Kh7 {[%clk 0:00:10]} 30. g4 {[%clk 0:00:18]} 30... Nd5
{[%clk 0:00:09.9]} 31. Ne5 {[%clk 0:00:17.2]} 31... Qf6 {[%clk 0:00:07.3]} 32.
Nf3 {[%clk 0:00:14.6]} 32... Qxf3 {[%clk 0:00:06.3]} 33. Qa7 {[%clk 0:00:11.6]}
33... Qf7 {[%clk 0:00:05.8]} 34. Qd4 {[%clk 0:00:11.6]} 34... Nf4 {[%clk
0:00:05.1]} 35. Kh2 {[%clk 0:00:11.3]} 35... Ne6 {[%clk 0:00:05.7]} 36. Qe3
{[%clk 0:00:09.2]} 36... Qf4+ {[%clk 0:00:05.6]} 37. Kg2 {[%clk 0:00:08.9]}
37... Qxe3 {[%clk 0:00:05.8]} 38. fxe3 {[%clk 0:00:09.8]} 38... Nc5 {[%clk
0:00:06.3]} 39. Kf3 {[%clk 0:00:08.9]} 39... Nd3 {[%clk 0:00:06.8]} 40. b3
{[%clk 0:00:08.9]} 40... Nc5 {[%clk 0:00:07.3]} 41. b4 {[%clk 0:00:09.2]} 41...
Nd3 {[%clk 0:00:07.9]} 42. Ke4 {[%clk 0:00:09.4]} 42... Nxb4 {[%clk 0:00:08.5]}
43. Kd4 {[%clk 0:00:10.3]} 43... Kg7 {[%clk 0:00:07.9]} 44. Kc5 {[%clk
0:00:10.6]} 44... Nc2 {[%clk 0:00:06.3]} 45. e4 {[%clk 0:00:11.5]} 45... Ne3
{[%clk 0:00:06]} 46. Kb6 {[%clk 0:00:11.8]} 46... Nc4+ {[%clk 0:00:06.5]} 47.
Kxb7 {[%clk 0:00:11.8]} 47... Nxa5+ {[%clk 0:00:07.3]} 48. Kxa6 {[%clk
0:00:11.9]} 48... Nc4 {[%clk 0:00:07.7]} 49. Kb7 {[%clk 0:00:10.6]} 49... Ne5
{[%clk 0:00:08.1]} 50. Kb6 {[%clk 0:00:10.8]} 50... Kf6 {[%clk 0:00:08.6]} 51.
Kc5 {[%clk 0:00:11.6]} 51... Ke6 {[%clk 0:00:09]} 52. h4 {[%clk 0:00:11.8]}
52... Nxg4 {[%clk 0:00:08.6]} 53. Kxc6 {[%clk 0:00:11.8]} 53... Ke5 {[%clk
0:00:09.2]} 54. h5 {[%clk 0:00:10.4]} 54... gxh5 {[%clk 0:00:09.4]} 0-1